[Event "Titled Tuesday Blitz August 1 Early 2023"]
[White "Vifleemskaia, Svetlana"]
[Black "Havlik, Jan"]
[WhiteFideId "4129490"]
[BlackFideId "319783"]
[WhiteElo "2326"]
[BlackElo "2615"]
[Result "1/2-1/2"]
[Round "1"]
[TimeControl "180+1"]
[Date "2023.08.01"]
[WhiteClock "0:00:31"]
[BlackClock "0:02:06"]
[Board "165"]

1. d4 {[%clk 0:02:55]}  Nf6 {[%clk 0:02:59]} 2. c4 {[%clk 0:02:55]}  g6 {[%clk 0:03:00]} 3. Nc3 {[%clk 0:02:52]}  Bg7 {[%clk 0:03:00]} 4. e4 {[%clk 0:02:52]}  d6 {[%clk 0:02:59]} 5. Nge2 {[%clk 0:02:53]}  O-O {[%clk 0:02:59]} 6. Ng3 {[%clk 0:02:53]}  c5 {[%clk 0:03:00]} 7. d5 {[%clk 0:02:53]}  e6 {[%clk 0:02:59]} 8. Be2 {[%clk 0:02:51]}  exd5 {[%clk 0:02:58]} 9. cxd5 {[%clk 0:02:52]}  Na6 {[%clk 0:02:58]} 10. O-O {[%clk 0:02:51]}  Nc7 {[%clk 0:02:58]} 11. a4 {[%clk 0:02:51]}  a6 {[%clk 0:02:58]} 12. Bf4 {[%clk 0:02:45]}  Rb8 {[%clk 0:02:58]} 13. a5 {[%clk 0:02:37]}  b5 {[%clk 0:02:57]} 14. axb6 {[%clk 0:02:37]}  Rxb6 {[%clk 0:02:58]} 15. Qd2 {[%clk 0:02:27]}  Nb5 {[%clk 0:02:51]} 16. Na4 {[%clk 0:02:26]}  Rb8 {[%clk 0:02:50]} 17. e5 {[%clk 0:02:21]}  dxe5 {[%clk 0:02:34]} 18. Bxe5 {[%clk 0:02:21]}  Ne4 {[%clk 0:02:35]} 19. Qf4 {[%clk 0:02:04]}  Bxe5 {[%clk 0:02:34]} 20. Qxe5 {[%clk 0:02:03]}  Nxg3 {[%clk 0:02:32]} 21. hxg3 {[%clk 0:01:48]}  Bb7 {[%clk 0:02:32]} 22. Bxb5 {[%clk 0:01:37]}  axb5 {[%clk 0:02:31]} 23. Nxc5 {[%clk 0:01:37]}  Qxd5 {[%clk 0:02:30]} 24. Qxd5 {[%clk 0:01:35]}  Bxd5 {[%clk 0:02:31]} 25. Nd7 {[%clk 0:01:35]}  Bc4 {[%clk 0:02:30]} 26. Rfe1 {[%clk 0:01:33]}  Rbd8 {[%clk 0:02:30]} 27. Nxf8 {[%clk 0:01:33]}  Kxf8 {[%clk 0:02:30]} 28. Rad1 {[%clk 0:01:32]}  Ra8 {[%clk 0:02:31]} 29. Rd2 {[%clk 0:01:31]}  h5 {[%clk 0:02:29]} 30. f3 {[%clk 0:01:30]}  Ra7 {[%clk 0:02:27]} 31. Kf2 {[%clk 0:01:31]}  Kg7 {[%clk 0:02:25]} 32. Re5 {[%clk 0:01:29]}  Kf6 {[%clk 0:02:24]} 33. Re8 {[%clk 0:01:28]}  Kg7 {[%clk 0:02:24]} 34. Red8 {[%clk 0:01:28]}  Kf6 {[%clk 0:02:21]} 35. R8d6+ {[%clk 0:01:27]}  Kg7 {[%clk 0:02:21]} 36. Rd7 {[%clk 0:01:28]}  Ra1 {[%clk 0:02:21]} 37. Rd1 {[%clk 0:01:27]}  Ra2 {[%clk 0:02:21]} 38. R7d2 {[%clk 0:01:24]}  Ra7 {[%clk 0:02:21]} 39. Re1 {[%clk 0:01:22]}  Kf6 {[%clk 0:02:20]} 40. g4 {[%clk 0:01:18]}  hxg4 {[%clk 0:02:19]} 41. fxg4 {[%clk 0:01:19]}  Kg5 {[%clk 0:02:19]} 42. Kg3 {[%clk 0:01:16]}  Kf6 {[%clk 0:02:17]} 43. Rf2+ {[%clk 0:01:14]}  Kg7 {[%clk 0:02:17]} 44. Re3 {[%clk 0:01:12]}  Rd7 {[%clk 0:02:16]} 45. b3 {[%clk 0:01:11]}  Be6 {[%clk 0:02:15]} 46. Rf4 {[%clk 0:00:58]}  Rd5 {[%clk 0:02:15]} 47. Rb4 {[%clk 0:00:58]}  Rc5 {[%clk 0:02:14]} 48. Kf4 {[%clk 0:00:50]}  Kf6 {[%clk 0:02:12]} 49. Kf3 {[%clk 0:00:41]}  Bd5+ {[%clk 0:02:11]} 50. Kg3 {[%clk 0:00:41]}  Be6 {[%clk 0:02:11]} 51. Kf4 {[%clk 0:00:40]}  Rd5 {[%clk 0:02:05]} 52. Kg3 {[%clk 0:00:35]}  Rc5 {[%clk 0:02:05]} 53. Kf4 {[%clk 0:00:34]}  Rd5 {[%clk 0:02:05]} 54. Kg3 {[%clk 0:00:31]}  Rc5 {[%clk 0:02:06]} 1/2-1/2


[Site "https://www.chess.com"]

[Event "Titled Tuesday Blitz August 1 Early 2023"]
[White "Sipila, Vilka"]
[Black "Fajdetic, Hrvoje"]
[WhiteFideId "505455"]
[BlackFideId "14501945"]
[WhiteElo "2614"]
[BlackElo "2323"]
[Result "1-0"]
[Round "1"]
[TimeControl "180+1"]
[Date "2023.08.01"]
[WhiteClock "0:01:37"]
[BlackClock "0:00:14"]
[Board "166"]

1. e4 {[%clk 0:03:00]}  e6 {[%clk 0:02:58]} 2. d4 {[%clk 0:03:01]}  d5 {[%clk 0:02:58]} 3. e5 {[%clk 0:03:01]}  c5 {[%clk 0:02:58]} 4. c3 {[%clk 0:03:02]}  Nc6 {[%clk 0:02:58]} 5. Nf3 {[%clk 0:03:01]}  Bd7 {[%clk 0:02:58]} 6. Be2 {[%clk 0:02:59]}  f6 {[%clk 0:02:58]} 7. O-O {[%clk 0:02:55]}  fxe5 {[%clk 0:02:58]} 8. Nxe5 {[%clk 0:02:55]}  Nf6 {[%clk 0:02:58]} 9. Bf4 {[%clk 0:02:51]}  Be7 {[%clk 0:02:41]} 10. Nd2 {[%clk 0:02:42]}  cxd4 {[%clk 0:02:36]} 11. Nxc6 {[%clk 0:02:42]}  bxc6 {[%clk 0:02:34]} 12. cxd4 {[%clk 0:02:42]}  O-O {[%clk 0:02:34]} 13. Rc1 {[%clk 0:02:42]}  Qb6 {[%clk 0:02:27]} 14. Nb3 {[%clk 0:02:40]}  Ne4 {[%clk 0:02:24]} 15. Be5 {[%clk 0:02:39]}  Bf6 {[%clk 0:02:20]} 16. Bxf6 {[%clk 0:02:39]}  Rxf6 {[%clk 0:02:21]} 17. Bd3 {[%clk 0:02:33]}  Nd6 {[%clk 0:01:54]} 18. Nc5 {[%clk 0:02:33]}  Bc8 {[%clk 0:01:42]} 19. b3 {[%clk 0:02:33]}  Nb7 {[%clk 0:01:38]} 20. Na4 {[%clk 0:02:32]}  Qc7 {[%clk 0:01:33]} 21. Qd2 {[%clk 0:02:27]}  Bd7 {[%clk 0:01:29]} 22. Rfe1 {[%clk 0:02:26]}  Raf8 {[%clk 0:01:28]} 23. f3 {[%clk 0:02:26]}  Kh8 {[%clk 0:01:22]} 24. Re5 {[%clk 0:02:25]}  Rf4 {[%clk 0:01:12]} 25. Qe3 {[%clk 0:02:23]}  Qd6 {[%clk 0:00:54]} 26. Be2 {[%clk 0:02:22]}  Nd8 {[%clk 0:00:51]} 27. g3 {[%clk 0:02:21]}  R4f6 {[%clk 0:00:50]} 28. Qd2 {[%clk 0:02:08]}  Nf7 {[%clk 0:00:48]} 29. Re3 {[%clk 0:02:08]}  e5 {[%clk 0:00:48]} 30. Nc5 {[%clk 0:02:08]}  exd4 {[%clk 0:00:46]} 31. Qxd4 {[%clk 0:02:08]}  Bc8 {[%clk 0:00:42]} 32. f4 {[%clk 0:02:07]}  Nh6 {[%clk 0:00:41]} 33. Bd3 {[%clk 0:02:06]}  Ng4 {[%clk 0:00:40]} 34. Re2 {[%clk 0:02:06]}  Bf5 {[%clk 0:00:29]} 35. Bxf5 {[%clk 0:02:00]}  Rxf5 {[%clk 0:00:30]} 36. Re6 {[%clk 0:02:00]}  Qc7 {[%clk 0:00:26]} 37. Rce1 {[%clk 0:01:51]}  Nf6 {[%clk 0:00:21]} 38. Re7 {[%clk 0:01:51]}  Qb6 {[%clk 0:00:20]} 39. b4 {[%clk 0:01:46]}  a5 {[%clk 0:00:20]} 40. Rb7 {[%clk 0:01:45]}  Qd8 {[%clk 0:00:18]} 41. Ne6 {[%clk 0:01:43]}  Qc8 {[%clk 0:00:16]} 42. Rc7 {[%clk 0:01:41]}  Qb8 {[%clk 0:00:16]} 43. Rxg7 {[%clk 0:01:37]}  Ne4 {[%clk 0:00:14]} 44. Rg8+ {[%clk 0:01:36]}  Kxg8 {[%clk 0:00:14]} 45. Qg7# {[%clk 0:01:37]} 1-0


[Site "https://www.chess.com"]

[Event "Titled Tuesday Blitz August 1 Early 2023"]
[White "Sawyer, Bradley"]
[Black "Ovchinnikov, Vsevolod"]
[WhiteFideId "2023784"]
[BlackFideId "24176842"]
[WhiteElo "2323"]
[BlackElo "2613"]
[Result "0-1"]
[Round "1"]
[TimeControl "180+1"]
[Date "2023.08.01"]
[WhiteClock "0:00:23"]
[BlackClock "0:00:08"]
[Board "167"]

1. Nf3 {[%clk 0:03:00]}  Nf6 {[%clk 0:02:58]} 2. b3 {[%clk 0:03:01]}  d5 {[%clk 0:02:57]} 3. Bb2 {[%clk 0:03:01]}  g6 {[%clk 0:02:58]} 4. g3 {[%clk 0:02:58]}  Bg7 {[%clk 0:02:58]} 5. Bg2 {[%clk 0:02:59]}  O-O {[%clk 0:02:57]} 6. O-O {[%clk 0:02:59]}  c5 {[%clk 0:02:57]} 7. e3 {[%clk 0:02:56]}  b6 {[%clk 0:02:54]} 8. d4 {[%clk 0:02:56]}  Nbd7 {[%clk 0:02:53]} 9. Qe2 {[%clk 0:02:54]}  Bb7 {[%clk 0:02:52]} 10. Rd1 {[%clk 0:02:55]}  Rc8 {[%clk 0:02:49]} 11. c4 {[%clk 0:02:52]}  dxc4 {[%clk 0:02:49]} 12. bxc4 {[%clk 0:02:52]}  cxd4 {[%clk 0:02:49]} 13. exd4 {[%clk 0:02:52]}  e6 {[%clk 0:02:49]} 14. Na3 {[%clk 0:02:51]}  a6 {[%clk 0:02:46]} 15. Rac1 {[%clk 0:02:52]}  Re8 {[%clk 0:02:45]} 16. Nc2 {[%clk 0:02:40]}  Qc7 {[%clk 0:02:43]} 17. Ne3 {[%clk 0:02:40]}  Qb8 {[%clk 0:02:43]} 18. Ba3 {[%clk 0:02:11]}  Qa8 {[%clk 0:02:39]} 19. Ne1 {[%clk 0:02:06]}  Bxg2 {[%clk 0:02:32]} 20. N1xg2 {[%clk 0:02:06]}  b5 {[%clk 0:02:18]} 21. c5 {[%clk 0:01:48]}  Nb8 {[%clk 0:01:57]} 22. Nf4 {[%clk 0:01:44]}  Nc6 {[%clk 0:01:54]} 23. Qf3 {[%clk 0:01:40]}  Rcd8 {[%clk 0:00:27]} 24. Bb2 {[%clk 0:01:40]}  Nb4 {[%clk 0:00:24]} 25. Qxa8 {[%clk 0:01:39]}  Rxa8 {[%clk 0:00:25]} 26. d5 {[%clk 0:01:27]}  Nfxd5 {[%clk 0:00:22]} 27. Nexd5 {[%clk 0:01:22]}  Nxd5 {[%clk 0:00:18]} 28. Nxd5 {[%clk 0:01:15]}  Bxb2 {[%clk 0:00:16]} 29. Rc2 {[%clk 0:01:15]}  exd5 {[%clk 0:00:16]} 30. Rxb2 {[%clk 0:01:16]}  Re5 {[%clk 0:00:16]} 31. Rbd2 {[%clk 0:01:16]}  Rd8 {[%clk 0:00:16]} 32. c6 {[%clk 0:01:16]}  Rc8 {[%clk 0:00:15]} 33. Rxd5 {[%clk 0:01:16]}  Rxd5 {[%clk 0:00:15]} 34. Rxd5 {[%clk 0:01:16]}  Rxc6 {[%clk 0:00:15]} 35. Rd8+ {[%clk 0:01:15]}  Kg7 {[%clk 0:00:15]} 36. Ra8 {[%clk 0:01:14]}  g5 {[%clk 0:00:16]} 37. Kg2 {[%clk 0:01:07]}  Rf6 {[%clk 0:00:15]} 38. h3 {[%clk 0:01:05]}  h6 {[%clk 0:00:15]} 39. Ra7 {[%clk 0:01:04]}  Kg6 {[%clk 0:00:15]} 40. f4 {[%clk 0:01:01]}  gxf4 {[%clk 0:00:15]} 41. gxf4 {[%clk 0:01:02]}  Rxf4 {[%clk 0:00:08]} 42. Rxa6+ {[%clk 0:01:02]}  Kg5 {[%clk 0:00:08]} 43. Ra5 {[%clk 0:01:00]}  Rb4 {[%clk 0:00:05]} 44. a4 {[%clk 0:00:58]}  Rxa4 {[%clk 0:00:05]} 45. Rxb5+ {[%clk 0:00:59]}  f5 {[%clk 0:00:05]} 46. Rb8 {[%clk 0:00:55]}  Ra2+ {[%clk 0:00:05]} 47. Kg3 {[%clk 0:00:52]}  Ra3+ {[%clk 0:00:06]} 48. Kg2 {[%clk 0:00:53]}  Kf4 {[%clk 0:00:03]} 49. Rb4+ {[%clk 0:00:53]}  Kg5 {[%clk 0:00:04]} 50. Rb8 {[%clk 0:00:53]}  Ra2+ {[%clk 0:00:04]} 51. Kg3 {[%clk 0:00:53]}  f4+ {[%clk 0:00:04]} 52. Kf3 {[%clk 0:00:53]}  Ra3+ {[%clk 0:00:05]} 53. Kg2 {[%clk 0:00:54]}  Rg3+ {[%clk 0:00:05]} 54. Kh2 {[%clk 0:00:53]}  Kf5 {[%clk 0:00:05]} 55. Rf8+ {[%clk 0:00:51]}  Ke4 {[%clk 0:00:05]} 56. Re8+ {[%clk 0:00:52]}  Kf3 {[%clk 0:00:06]} 57. Rh8 {[%clk 0:00:51]}  Rg2+ {[%clk 0:00:05]} 58. Kh1 {[%clk 0:00:52]}  Rg6 {[%clk 0:00:06]} 59. h4 {[%clk 0:00:49]}  Kg4 {[%clk 0:00:06]} 60. Rf8 {[%clk 0:00:48]}  h5 {[%clk 0:00:06]} 61. Kh2 {[%clk 0:00:48]}  Re6 {[%clk 0:00:05]} 62. Kg1 {[%clk 0:00:47]}  Re2 {[%clk 0:00:05]} 63. Kf1 {[%clk 0:00:47]}  Re3 {[%clk 0:00:05]} 64. Kf2 {[%clk 0:00:47]}  Rf3+ {[%clk 0:00:06]} 65. Kg2 {[%clk 0:00:47]}  Rg3+ {[%clk 0:00:07]} 66. Kf2 {[%clk 0:00:48]}  Rf3+ {[%clk 0:00:06]} 67. Kg2 {[%clk 0:00:48]}  Ra3 {[%clk 0:00:07]} 68. Kf2 {[%clk 0:00:47]}  Ra2+ {[%clk 0:00:07]} 69. Ke1 {[%clk 0:00:46]}  Kg3 {[%clk 0:00:07]} 70. Rg8+ {[%clk 0:00:42]}  Kxh4 {[%clk 0:00:07]} 71. Kf1 {[%clk 0:00:42]}  f3 {[%clk 0:00:06]} 72. Kg1 {[%clk 0:00:43]}  Kh3 {[%clk 0:00:06]} 73. Kf1 {[%clk 0:00:40]}  h4 {[%clk 0:00:06]} 74. Rg7 {[%clk 0:00:40]}  Rg2 {[%clk 0:00:06]} 75. Rf7 {[%clk 0:00:40]}  Rg3 {[%clk 0:00:06]} 76. Kf2 {[%clk 0:00:39]}  Kh2 {[%clk 0:00:06]} 77. Rf5 {[%clk 0:00:37]}  h3 {[%clk 0:00:05]} 78. Rf8 {[%clk 0:00:36]}  Rg2+ {[%clk 0:00:05]} 79. Kf1 {[%clk 0:00:37]}  f2 {[%clk 0:00:05]} 80. Rxf2 {[%clk 0:00:35]}  Kh1 {[%clk 0:00:05]} 81. Rf8 {[%clk 0:00:33]}  h2 {[%clk 0:00:05]} 82. Rh8 {[%clk 0:00:31]}  Ra2 {[%clk 0:00:05]} 83. Rg8 {[%clk 0:00:31]}  Ra1+ {[%clk 0:00:05]} 84. Kf2 {[%clk 0:00:32]}  Rg1 {[%clk 0:00:06]} 85. Rh8 {[%clk 0:00:31]}  Rg7 {[%clk 0:00:06]} 86. Kf1 {[%clk 0:00:31]}  Rf7+ {[%clk 0:00:07]} 87. Ke2 {[%clk 0:00:31]}  Rf4 {[%clk 0:00:07]} 88. Rg8 {[%clk 0:00:31]}  Rf5 {[%clk 0:00:07]} 89. Ke3 {[%clk 0:00:28]}  Rf7 {[%clk 0:00:06]} 90. Ke2 {[%clk 0:00:28]}  Rf6 {[%clk 0:00:05]} 91. Ke3 {[%clk 0:00:29]}  Rf1 {[%clk 0:00:05]} 92. Ke2 {[%clk 0:00:29]}  Rg1 {[%clk 0:00:06]} 93. Rh8 {[%clk 0:00:29]}  Kg2 {[%clk 0:00:06]} 94. Rg8+ {[%clk 0:00:29]}  Kh3 {[%clk 0:00:07]} 95. Rh8+ {[%clk 0:00:30]}  Kg3 {[%clk 0:00:07]} 96. Rg8+ {[%clk 0:00:30]}  Kf4 {[%clk 0:00:08]} 97. Rf8+ {[%clk 0:00:23]}  Ke5 {[%clk 0:00:08]} 0-1


[Site "https://www.chess.com"]

[Event "Titled Tuesday Blitz August 1 Early 2023"]
[White "Jiganchine, Roman"]
[Black "Omorjan, Dejan"]
[WhiteFideId "2603667"]
[BlackFideId "955345"]
[WhiteElo "2321"]
[BlackElo "2606"]
[Result "0-1"]
[Round "1"]
[TimeControl "180+1"]
[Date "2023.08.01"]
[WhiteClock "0:00:00"]
[BlackClock "0:00:08"]
[Board "169"]

1. e4 {[%clk 0:02:59]}  c6 {[%clk 0:02:59]} 2. d4 {[%clk 0:02:59]}  d5 {[%clk 0:03:00]} 3. exd5 {[%clk 0:02:59]}  cxd5 {[%clk 0:03:01]} 4. Nf3 {[%clk 0:02:59]}  Nc6 {[%clk 0:03:00]} 5. c4 {[%clk 0:02:59]}  Nf6 {[%clk 0:02:59]} 6. Nc3 {[%clk 0:02:59]}  a6 {[%clk 0:03:00]} 7. cxd5 {[%clk 0:02:51]}  Nxd5 {[%clk 0:03:01]} 8. Qb3 {[%clk 0:02:37]}  Be6 {[%clk 0:02:34]} 9. Ng5 {[%clk 0:01:46]}  Nxd4 {[%clk 0:02:11]} 10. Qa4+ {[%clk 0:01:41]}  Nc6 {[%clk 0:01:56]} 11. Nxe6 {[%clk 0:01:35]}  fxe6 {[%clk 0:01:56]} 12. Be2 {[%clk 0:01:14]}  g6 {[%clk 0:01:47]} 13. O-O {[%clk 0:01:08]}  Bg7 {[%clk 0:01:46]} 14. Qg4 {[%clk 0:01:07]}  Nd4 {[%clk 0:01:39]} 15. Be3 {[%clk 0:01:01]}  Nxc3 {[%clk 0:01:04]} 16. bxc3 {[%clk 0:00:55]}  Nxe2+ {[%clk 0:01:04]} 17. Qxe2 {[%clk 0:00:55]}  O-O {[%clk 0:01:04]} 18. Rad1 {[%clk 0:00:47]}  Qc7 {[%clk 0:00:56]} 19. Bd4 {[%clk 0:00:45]}  e5 {[%clk 0:00:55]} 20. Be3 {[%clk 0:00:45]}  Qxc3 {[%clk 0:00:53]} 21. Rd7 {[%clk 0:00:42]}  Qc6 {[%clk 0:00:49]} 22. Rfd1 {[%clk 0:00:42]}  Bf6 {[%clk 0:00:43]} 23. Qg4 {[%clk 0:00:34]}  Rac8 {[%clk 0:00:36]} 24. h4 {[%clk 0:00:33]}  Qc4 {[%clk 0:00:34]} 25. Qxc4+ {[%clk 0:00:20]}  Rxc4 {[%clk 0:00:35]} 26. h5 {[%clk 0:00:19]}  b5 {[%clk 0:00:32]} 27. h6 {[%clk 0:00:18]}  Rfc8 {[%clk 0:00:28]} 28. Ra7 {[%clk 0:00:14]}  Ra4 {[%clk 0:00:27]} 29. Kh2 {[%clk 0:00:06]}  Rxa2 {[%clk 0:00:24]} 30. g4 {[%clk 0:00:06]}  g5 {[%clk 0:00:20]} 31. Kg2 {[%clk 0:00:05]}  Kf7 {[%clk 0:00:18]} 32. Kf3 {[%clk 0:00:05]}  Ra4 {[%clk 0:00:17]} 33. Rdd7 {[%clk 0:00:04]}  Kg6 {[%clk 0:00:16]} 34. Rdb7 {[%clk 0:00:03]}  Kxh6 {[%clk 0:00:13]} 35. Rb6 {[%clk 0:00:03]}  Kg6 {[%clk 0:00:12]} 36. Rxe7 {[%clk 0:00:03]}  Rf8 {[%clk 0:00:07]} 37. Ree6 {[%clk 0:00:03]}  Kg7 {[%clk 0:00:06]} 38. Kg2 {[%clk 0:00:03]}  Bd8 {[%clk 0:00:06]} 39. Kg3 {[%clk 0:00:03]}  Bxb6 {[%clk 0:00:05]} 40. Rxb6 {[%clk 0:00:03]}  h6 {[%clk 0:00:06]} 41. Rb7+ {[%clk 0:00:03]}  Rf7 {[%clk 0:00:07]} 42. Rb6 {[%clk 0:00:04]}  Ra3 {[%clk 0:00:07]} 43. Kg2 {[%clk 0:00:04]}  Ra4 {[%clk 0:00:07]} 44. Rb8 {[%clk 0:00:03]}  b4 {[%clk 0:00:07]} 45. Re8 {[%clk 0:00:03]}  a5 {[%clk 0:00:07]} 46. Rxe5 {[%clk 0:00:04]}  Ra3 {[%clk 0:00:07]} 47. Bd4 {[%clk 0:00:03]}  Kg6 {[%clk 0:00:07]} 48. Re6+ {[%clk 0:00:03]}  Kh7 {[%clk 0:00:07]} 49. Re4 {[%clk 0:00:03]}  Rd7 {[%clk 0:00:07]} 50. Be5 {[%clk 0:00:03]}  Rad3 {[%clk 0:00:07]} 51. Rc4 {[%clk 0:00:03]}  b3 {[%clk 0:00:07]} 52. Rc8 {[%clk 0:00:03]}  a4 {[%clk 0:00:07]} 53. Rh8+ {[%clk 0:00:03]}  Kg6 {[%clk 0:00:07]} 54. Rg8+ {[%clk 0:00:03]}  Kf7 {[%clk 0:00:08]} 55. Rg7+ {[%clk 0:00:03]}  Ke6 {[%clk 0:00:09]} 56. Bg3 {[%clk 0:00:00]}  Rxg7 {[%clk 0:00:08]} 0-1


[Site "https://www.chess.com"]

[Event "Titled Tuesday Blitz August 1 Early 2023"]
[White "Ardila, Oscar Humberto"]
[Black "musclemonster12"]
[WhiteFideId "4404742"]
[WhiteElo "2310"]
[BlackElo "2605"]
[Result "0-1"]
[Round "1"]
[TimeControl "180+1"]
[Date "2023.08.01"]
[WhiteClock "0:00:21"]
[BlackClock "0:00:53"]
[Board "171"]

1. d4 {[%clk 0:02:33]}  Nf6 {[%clk 0:02:59]} 2. Nf3 {[%clk 0:02:31]}  e6 {[%clk 0:02:56]} 3. c4 {[%clk 0:02:31]}  b6 {[%clk 0:02:44]} 4. e3 {[%clk 0:02:30]}  Bb7 {[%clk 0:02:42]} 5. Be2 {[%clk 0:02:30]}  Bb4+ {[%clk 0:02:33]} 6. Bd2 {[%clk 0:02:30]}  Bxd2+ {[%clk 0:02:33]} 7. Nbxd2 {[%clk 0:02:29]}  O-O {[%clk 0:02:34]} 8. O-O {[%clk 0:02:29]}  d6 {[%clk 0:02:34]} 9. Qc2 {[%clk 0:02:28]}  Nbd7 {[%clk 0:02:35]} 10. b4 {[%clk 0:02:27]}  Qe7 {[%clk 0:02:36]} 11. Rfc1 {[%clk 0:02:26]}  c5 {[%clk 0:02:36]} 12. bxc5 {[%clk 0:02:14]}  dxc5 {[%clk 0:02:37]} 13. a4 {[%clk 0:01:46]}  cxd4 {[%clk 0:02:25]} 14. exd4 {[%clk 0:01:45]}  e5 {[%clk 0:02:23]} 15. d5 {[%clk 0:01:42]}  Nc5 {[%clk 0:02:21]} 16. Nb3 {[%clk 0:01:38]}  Rac8 {[%clk 0:02:06]} 17. a5 {[%clk 0:01:33]}  e4 {[%clk 0:01:43]} 18. Nfd4 {[%clk 0:01:31]}  e3 {[%clk 0:01:40]} 19. f3 {[%clk 0:01:22]}  Qe5 {[%clk 0:01:35]} 20. Nxc5 {[%clk 0:01:00]}  Rxc5 {[%clk 0:01:16]} 21. Nb3 {[%clk 0:00:59]}  Rcc8 {[%clk 0:01:06]} 22. Qd3 {[%clk 0:00:59]}  Nh5 {[%clk 0:01:03]} 23. g3 {[%clk 0:00:58]}  Nxg3 {[%clk 0:01:02]} 24. hxg3 {[%clk 0:00:55]}  Qxg3+ {[%clk 0:01:03]} 25. Kh1 {[%clk 0:00:55]}  Qh3+ {[%clk 0:00:57]} 26. Kg1 {[%clk 0:00:55]}  Qg3+ {[%clk 0:00:58]} 27. Kh1 {[%clk 0:00:56]}  Rfd8 {[%clk 0:00:59]} 28. Nd4 {[%clk 0:00:26]}  Rd6 {[%clk 0:00:53]} 29. Nf5 {[%clk 0:00:25]}  Qh3+ {[%clk 0:00:52]} 30. Kg1 {[%clk 0:00:21]}  Rg6+ {[%clk 0:00:53]} 0-1


[Site "https://www.chess.com"]

[Event "Titled Tuesday Blitz August 1 Early 2023"]
[White "Levitan, Caleb Levi"]
[Black "Jain Kashish Manoj"]
[WhiteFideId "14332620"]
[BlackFideId "35081098"]
[WhiteElo "2307"]
[BlackElo "2596"]
[Result "0-1"]
[Round "1"]
[TimeControl "180+1"]
[Date "2023.08.01"]
[WhiteClock "0:00:00"]
[BlackClock "0:00:10"]
[Board "175"]

1. e4 {[%clk 0:02:59]}  c5 {[%clk 0:02:59]} 2. Nf3 {[%clk 0:02:58]}  d6 {[%clk 0:02:56]} 3. d4 {[%clk 0:02:57]}  cxd4 {[%clk 0:02:57]} 4. Nxd4 {[%clk 0:02:57]}  Nf6 {[%clk 0:02:58]} 5. Nc3 {[%clk 0:02:57]}  Nc6 {[%clk 0:02:58]} 6. Bc4 {[%clk 0:02:53]}  Bd7 {[%clk 0:02:58]} 7. Bb3 {[%clk 0:02:51]}  g6 {[%clk 0:02:57]} 8. O-O {[%clk 0:02:49]}  Bg7 {[%clk 0:02:52]} 9. Nxc6 {[%clk 0:02:36]}  Bxc6 {[%clk 0:02:53]} 10. Qe2 {[%clk 0:02:33]}  O-O {[%clk 0:02:52]} 11. f4 {[%clk 0:02:32]}  Nd7 {[%clk 0:02:18]} 12. Be3 {[%clk 0:02:00]}  b5 {[%clk 0:01:56]} 13. Rad1 {[%clk 0:01:42]}  b4 {[%clk 0:01:49]} 14. Nd5 {[%clk 0:01:39]}  a5 {[%clk 0:01:42]} 15. c3 {[%clk 0:01:26]}  bxc3 {[%clk 0:01:24]} 16. bxc3 {[%clk 0:01:15]}  e6 {[%clk 0:00:56]} 17. f5 {[%clk 0:00:35]}  exd5 {[%clk 0:00:53]} 18. exd5 {[%clk 0:00:30]}  Bb7 {[%clk 0:00:52]} 19. Qf2 {[%clk 0:00:20]}  Ba6 {[%clk 0:00:44]} 20. c4 {[%clk 0:00:15]}  a4 {[%clk 0:00:44]} 21. Bxa4 {[%clk 0:00:07]}  Bxc4 {[%clk 0:00:44]} 22. Bxd7 {[%clk 0:00:07]}  Bxf1 {[%clk 0:00:40]} 23. Bc6 {[%clk 0:00:07]}  Ba6 {[%clk 0:00:35]} 24. Bxa8 {[%clk 0:00:07]}  Qxa8 {[%clk 0:00:36]} 25. f6 {[%clk 0:00:06]}  Bh8 {[%clk 0:00:36]} 26. Bh6 {[%clk 0:00:05]}  Re8 {[%clk 0:00:35]} 27. Qh4 {[%clk 0:00:04]}  Qa7+ {[%clk 0:00:20]} 28. Kh1 {[%clk 0:00:01]}  Qc5 {[%clk 0:00:19]} 29. Rg1 {[%clk 0:00:02]}  Qc3 {[%clk 0:00:14]} 30. Qa4 {[%clk 0:00:00]}  Qc8 {[%clk 0:00:10]} 0-1


[Site "https://www.chess.com"]

[Event "Titled Tuesday Blitz August 1 Early 2023"]
[White "Soham Kamotra"]
[Black "SicilianPanzer"]
[WhiteFideId "46647490"]
[WhiteElo "2594"]
[BlackElo "2303"]
[Result "0-1"]
[Round "1"]
[TimeControl "180+1"]
[Date "2023.08.01"]
[WhiteClock "0:00:00"]
[BlackClock "0:00:04"]
[Board "178"]

1. b3 {[%clk 0:02:39]}  Nf6 {[%clk 0:02:57]} 2. Bb2 {[%clk 0:02:40]}  g6 {[%clk 0:02:57]} 3. Bxf6 {[%clk 0:02:37]}  exf6 {[%clk 0:02:56]} 4. c4 {[%clk 0:02:38]}  d5 {[%clk 0:02:56]} 5. cxd5 {[%clk 0:02:36]}  Qxd5 {[%clk 0:02:56]} 6. Nc3 {[%clk 0:02:36]}  Qa5 {[%clk 0:02:56]} 7. g3 {[%clk 0:02:34]}  Ba3 {[%clk 0:02:55]} 8. Qc2 {[%clk 0:02:29]}  Bf5 {[%clk 0:02:29]} 9. e4 {[%clk 0:02:25]}  Be6 {[%clk 0:02:26]} 10. Bg2 {[%clk 0:02:24]}  Nc6 {[%clk 0:02:23]} 11. Nge2 {[%clk 0:02:23]}  Rd8 {[%clk 0:02:20]} 12. d4 {[%clk 0:02:20]}  Rxd4 {[%clk 0:01:41]} 13. Nxd4 {[%clk 0:02:21]}  Nxd4 {[%clk 0:01:41]} 14. Qd3 {[%clk 0:02:16]}  Bb4 {[%clk 0:01:40]} 15. Rc1 {[%clk 0:02:16]}  Nb5 {[%clk 0:01:39]} 16. O-O {[%clk 0:02:13]}  Nxc3 {[%clk 0:01:28]} 17. a3 {[%clk 0:02:12]}  Qxa3 {[%clk 0:01:24]} 18. Rxc3 {[%clk 0:02:12]}  Bxc3 {[%clk 0:01:23]} 19. Qxc3 {[%clk 0:02:13]}  O-O {[%clk 0:01:17]} 20. Qxf6 {[%clk 0:01:33]}  Qxb3 {[%clk 0:01:14]} 21. h4 {[%clk 0:01:32]}  h5 {[%clk 0:01:11]} 22. Qe7 {[%clk 0:01:23]}  Qb6 {[%clk 0:00:58]} 23. Bf3 {[%clk 0:01:17]}  Bg4 {[%clk 0:00:46]} 24. Bxg4 {[%clk 0:01:13]}  hxg4 {[%clk 0:00:46]} 25. Rd1 {[%clk 0:01:14]}  Qe6 {[%clk 0:00:33]} 26. Qxc7 {[%clk 0:01:10]}  Qxe4 {[%clk 0:00:32]} 27. Rd7 {[%clk 0:00:45]}  b5 {[%clk 0:00:22]} 28. Qxa7 {[%clk 0:00:35]}  Qf3 {[%clk 0:00:18]} 29. h5 {[%clk 0:00:24]}  Re8 {[%clk 0:00:10]} 30. Qa1 {[%clk 0:00:17]}  gxh5 {[%clk 0:00:08]} 31. Rd4 {[%clk 0:00:14]}  Qf5 {[%clk 0:00:06]} 32. Rf4 {[%clk 0:00:14]}  Qg6 {[%clk 0:00:06]} 33. Qf1 {[%clk 0:00:10]}  Re6 {[%clk 0:00:05]} 34. Qxb5 {[%clk 0:00:09]}  Kg7 {[%clk 0:00:05]} 35. Kh2 {[%clk 0:00:09]}  Kh7 {[%clk 0:00:04]} 36. Qb2 {[%clk 0:00:09]}  f6 {[%clk 0:00:03]} 37. Qb3 {[%clk 0:00:08]}  Re7 {[%clk 0:00:02]} 38. Qb6 {[%clk 0:00:08]}  Rf7 {[%clk 0:00:03]} 39. Qe6 {[%clk 0:00:07]}  Kg7 {[%clk 0:00:03]} 40. Rf5 {[%clk 0:00:08]}  Qh6 {[%clk 0:00:03]} 41. Rd5 {[%clk 0:00:07]}  h4 {[%clk 0:00:03]} 42. Kg2 {[%clk 0:00:05]}  hxg3 {[%clk 0:00:03]} 43. Qxg4+ {[%clk 0:00:01]}  Qg6 {[%clk 0:00:04]} 44. Qxg3 {[%clk 0:00:01]}  Qxg3+ {[%clk 0:00:03]} 45. Kxg3 {[%clk 0:00:02]}  Kg6 {[%clk 0:00:03]} 46. Kf4 {[%clk 0:00:02]}  f5 {[%clk 0:00:03]} 47. Rd6+ {[%clk 0:00:00]}  Rf6 {[%clk 0:00:04]} 0-1


[Site "https://www.chess.com"]